fUST/lending_fUST_20251231
["ID","MTS","AMOUNT","RATE_DAILY","PERIOD"]
[400141209,1767149441176,-159.68059141,0.00013699,2]
[400141210,1767149441186,-500.0,0.00013699,2]
[400141211,1767149441195,-500.0,0.00013699,2]
[400141212,1767149441318,-500.0,0.00013699,2]
[400141213,1767149441328,-565.555714,0.00013699,2]
[400141214,1767149441338,-500.0,0.00013699,2]
[400141215,1767149441348,-500.0,0.00013699,2]
[400141216,1767149441357,-500.0,0.00013699,2]
[400141217,1767149441367,-165.03764715,0.00013699,2]
[400141218,1767149441376,-500.0,0.00013699,2]
[400141219,1767149441386,-500.0,0.00013699,2]
[400141220,1767149441395,-500.0,0.00013699,2]
[400141221,1767149441406,-500.0,0.00013699,2]
[400141222,1767149441415,-500.0,0.00013699,2]
[400141223,1767149441424,-500.0,0.00013699,2]
[400141224,1767149441433,-500.0,0.00013699,2]
[400141225,1767149441443,-500.0,0.00013699,2]
[400141226,1767149441452,-500.0,0.00013699,2]
[400141227,1767149441461,-500.0,0.00013699,2]
[400141228,1767149441471,-500.0,0.00013699,2]
[400141229,1767149441480,-500.0,0.00013699,2]
[400141230,1767149441490,-500.0,0.00013699,2]
[400141231,1767149441500,-500.0,0.00013699,2]
[400141232,1767149441509,-500.0,0.00013699,2]
[400141233,1767149441519,-510.7161434,0.00013699,2]
[400141234,1767149441528,-500.0,0.00013699,2]
[400141235,1767149441538,-500.0,0.00013699,2]
[400141236,1767149441547,-150.35034149,0.00013699,2]
[400141237,1767149441556,-500.0,0.00013699,2]
[400141238,1767149441565,-500.0,0.00013699,2]
[400141239,1767149441575,-500.0,0.00013699,2]
[400141240,1767149441585,-500.0,0.00013699,2]
[400141241,1767149441594,-500.0,0.00013699,2]
[400141242,1767149441604,-501.4710254,0.00013699,2]
[400141243,1767149441613,-303.93264249,0.00013699,2]
[400141244,1767149441624,-500.0,0.00013699,2]
[400141245,1767149441634,-500.48900482,0.00013699,2]
[400141246,1767149441643,-500.0,0.00013699,2]
[400141247,1767149441653,-500.0,0.00013699,2]
[400141248,1767149441662,-344.71637908,0.00013699,2]
[400141249,1767149441672,-500.0,0.00013699,2]
[400141250,1767149441681,-500.0,0.00013699,2]
[400141251,1767149441690,-158.39206841,0.00013699,2]
[400141252,1767149441700,-500.0,0.00013699,2]
[400141253,1767149441710,-500.0,0.00013699,2]
[400141254,1767149441721,-500.0,0.00013699,2]
[400141255,1767149441730,-500.0,0.00013699,2]
[400141256,1767149441739,-500.0,0.00013699,2]
[400141257,1767149441749,-500.0,0.00013699,2]
[400141258,1767149441758,-500.0,0.00013699,2]
[400141259,1767149441768,-500.0,0.00013699,2]
[400141260,1767149441777,-346.46150426,0.00013699,2]
[400141261,1767149441786,-500.0,0.00013699,2]
[400141262,1767149441796,-500.0,0.00013699,2]
[400141263,1767149441805,-500.0,0.00013699,2]
[400141264,1767149441815,-500.0,0.00013699,2]
[400141265,1767149441824,-500.0,0.00013699,2]
[400141266,1767149441833,-500.0,0.00013699,2]
[400141267,1767149441842,-500.0,0.00013699,2]
[400141268,1767149441852,-500.0,0.00013699,2]
[400141269,1767149441861,-500.0,0.00013699,2]
[400141270,1767149441870,-500.0,0.00013699,2]
[400141271,1767149441879,-178.08460977,0.00013699,2]
[400141272,1767149441888,-500.0,0.00013699,2]
[400141273,1767149441898,-366.01001326,0.00013699,2]
[400141274,1767149441907,-158.10807846,0.00013699,2]
[400141275,1767149441916,-500.0,0.00013699,2]
[400141276,1767149441926,-500.35582996,0.00013699,2]
[400141277,1767149441936,-500.0,0.00013699,2]
[400141278,1767149441945,-500.0,0.00013699,2]
[400141279,1767149441955,-307.59957655,0.00013699,2]
[400141280,1767149441965,-525.82485317,0.00013699,2]
[400141281,1767149441975,-441.0753747,0.00013699,2]
[400141282,1767149441984,-318.82320631,0.00013699,2]
[400141283,1767149441993,-500.0,0.00013699,2]
[400141284,1767149442002,-500.0,0.00013699,2]
[400141285,1767149442011,-500.0,0.00013699,2]
[400141286,1767149442020,-500.0,0.00013699,2]
[400141287,1767149442029,-254.02465024,0.00013699,2]
[400141288,1767149442038,-500.0,0.00013699,2]
[400141289,1767149442047,-500.0,0.00013699,2]
[400141290,1767149442056,-163.65866633,0.00013699,2]
[400141291,1767149442065,-500.0,0.00013699,2]
[400141292,1767149442075,-500.0,0.00013699,2]
[400141293,1767149442084,-500.0,0.00013699,2]
[400141294,1767149442094,-267.53598313,0.00013699,2]
[400141295,1767149442103,-500.0,0.00013699,2]
[400141296,1767149442112,-500.0,0.00013699,2]
[400141297,1767149442121,-500.0,0.00013699,2]
[400141298,1767149442130,-500.0,0.00013699,2]
[400141299,1767149442140,-500.0,0.00013699,2]
[400141300,1767149442149,-500.0,0.00013699,2]
[400141301,1767149442158,-500.0,0.00013699,2]
[400141302,1767149442168,-500.0,0.00013699,2]
[400141303,1767149442178,-500.0,0.00013699,2]
[400141304,1767149442186,-500.0,0.00013699,2]
[400141305,1767149442195,-500.0,0.00013699,2]
[400141306,1767149442205,-500.0,0.00013699,2]
[400141307,1767149442214,-500.0,0.00013699,2]
[400141308,1767149442223,-550.0,0.00013699,2]
[400141309,1767149442233,-151.0,0.000137,2]
[400141310,1767149442243,-720.0,0.0001372,2]
[400141311,1767149442252,-151.0,0.000138,2]
[400141312,1767149442263,-1000.0,0.00013821,2]
[400141313,1767149442272,-1000.0,0.00013821,2]
[400141314,1767149442282,-1000.0,0.00013821,2]
[400141315,1767149442291,-1000.0,0.00013821,2]
[400141316,1767149442300,-1000.0,0.00013821,2]
[400141317,1767149442309,-1000.0,0.00013821,2]
[400141318,1767149442320,-677.12142034,0.00013821,2]
[400141319,1767149442330,-1000.0,0.00013821,2]
[400141320,1767149442339,-1000.0,0.00013821,2]
[400141321,1767149442348,-331.59541923,0.00013821,2]
[400141322,1767149442357,-520.05984388,0.00013821,2]
[400141323,1767149442367,-1000.0,0.00013821,2]
[400141324,1767149442376,-1000.0,0.00013821,2]
[400141325,1767149442385,-1000.0,0.00013821,2]
[400141326,1767149442394,-1000.0,0.00013821,2]
[400141327,1767149442403,-881.16221649,0.00013821,2]
[400141328,1767149442412,-1000.0,0.00013821,2]
[400141329,1767149442422,-852.87208667,0.00013821,2]
[400141330,1767149442430,-1000.0,0.00013821,2]
[400141331,1767149442439,-1000.0,0.00013821,2]
[400141332,1767149442448,-502.50925578,0.00013821,2]
[400141333,1767149442457,-1000.0,0.00013821,2]
[400141334,1767149442467,-1000.0,0.00013821,2]
[400141335,1767149442476,-1000.0,0.00013821,2]
[400141336,1767149442485,-1000.0,0.00013821,2]
[400141337,1767149442494,-1000.0,0.00013821,2]
[400141338,1767149442503,-924.3864781,0.00013821,2]
[400141339,1767149442512,-660.63497667,0.00013821,2]
[400141340,1767149442521,-1000.0,0.00013821,2]
[400141341,1767149442530,-1000.0,0.00013821,2]
[400141342,1767149442539,-1000.0,0.00013821,2]
[400141343,1767149442548,-529.84736886,0.00013821,2]
[400141344,1767149442558,-1000.0,0.00013821,2]
[400141345,1767149442567,-1000.0,0.00013821,2]
[400141346,1767149442576,-1000.0,0.00013821,2]
[400141347,1767149442586,-205.30476225,0.00013821,2]
[400141348,1767149442595,-1000.0,0.00013821,2]
[400141349,1767149442604,-1000.0,0.00013821,2]
[400141350,1767149442613,-1000.0,0.00013821,2]
[400141351,1767149442623,-499.96763801,0.00013821,2]
[400141352,1767149442632,-501.03935192,0.00013821,2]
[400141353,1767149442641,-1000.0,0.00013821,2]
[400141354,1767149442650,-1000.0,0.00013821,2]
[400141355,1767149442659,-1000.0,0.00013821,2]
[400141356,1767149442669,-1001.55479895,0.00013821,2]
[400141357,1767149442678,-1000.0,0.00013821,2]
[400141358,1767149442688,-1000.0,0.00013821,2]
[400141359,1767149442697,-1000.0,0.00013821,2]
[400141360,1767149442706,-1000.0,0.00013821,2]
[400141361,1767149442716,-1000.0,0.00013821,2]
[400141362,1767149442726,-1000.0,0.00013821,2]
[400141363,1767149442736,-494.0031485,0.00013821,2]
[400141364,1767149442745,-1000.0,0.00013821,2]
[400141365,1767149442754,-1000.0,0.00013821,2]
[400141366,1767149442764,-459.90209075,0.00013821,2]
[400141367,1767149442774,-1000.0,0.00013821,2]
[400141368,1767149442783,-536.64067485,0.00013852,2]
[400141369,1767149442793,-500.0,0.00013872,2]
[400141370,1767149442802,-167.48,0.00013873,2]
[400141371,1767149442811,-167.48,0.00013873,2]
[400141372,1767149442821,-167.48,0.00013873,2]
[400141373,1767149442830,-167.48,0.00013873,2]
[400141374,1767149442840,-167.48,0.00013873,2]
[400141375,1767149442849,-167.48,0.00013873,2]
[400141376,1767149442858,-163.51,0.00013873,2]
[400141377,1767149442868,-151.0,0.000139,2]
[400141378,1767149442877,-2405.82,0.00013944,2]
[400141379,1767149442886,-163.51788502,0.00013973,2]
[400141380,1767149442896,-307.9726449,0.00014053,2]
[400141381,1767149442905,-1182.62181526,0.0001406,2]
[400141382,1767149442916,-151.0,0.000141,2]
[400141383,1767149442924,-500.0,0.00014145,2]
[400141384,1767149442933,-10000.0,0.00014147,2]
[400141385,1767149442943,-151.0,0.000142,2]
[400141386,1767149442952,-600.0,0.00014221,2]
[400141387,1767149442961,-1000.0,0.00014247,2]
[400141388,1767149442970,-500.4478313,0.00014247,2]
[400141389,1767149442979,-1000.0,0.00014247,2]
[400141390,1767149442988,-500.68443154,0.00014247,2]
[400141391,1767149442997,-1000.0,0.00014247,2]
[400141392,1767149443006,-1000.0,0.00014247,2]
[400141393,1767149443015,-1000.0,0.00014247,2]
[400141394,1767149443024,-1000.0,0.00014247,2]
[400141395,1767149443033,-1000.0,0.00014247,2]
[400141396,1767149443042,-1000.0,0.00014247,2]
[400141397,1767149443051,-1000.0,0.00014247,2]
[400141398,1767149443060,-1000.0,0.00014247,2]
[400141399,1767149443069,-251.84601956,0.00014247,2]
[400141400,1767149443078,-433.15519118,0.00014247,2]
[400141401,1767149443087,-908.24491784,0.00014247,2]
[400141402,1767149443096,-1000.0,0.00014247,2]
[400141403,1767149443105,-1000.0,0.00014247,2]
[400141404,1767149443114,-1000.0,0.00014247,2]
[400141405,1767149443124,-1000.0,0.00014247,2]
[400141406,1767149443133,-1000.0,0.00014247,2]
[400141407,1767149443142,-1000.0,0.00014247,2]
[400141408,1767149443150,-1000.0,0.00014247,2]
[400141409,1767149443159,-911.90264951,0.00014247,2]
[400141410,1767149443169,-1000.0,0.00014247,2]
[400141411,1767149443177,-1000.0,0.00014247,2]
[400141412,1767149443187,-1000.0,0.00014247,2]
[400141413,1767149443195,-609.17214565,0.00014247,2]
[400141414,1767149443204,-537.58100831,0.00014247,2]
[400141415,1767149443214,-1000.0,0.00014247,2]
[400141416,1767149443223,-1000.0,0.00014247,2]
[400141417,1767149443233,-1000.0,0.00014247,2]
[400141418,1767149443242,-1000.0,0.00014247,2]
[400141419,1767149443251,-1000.0,0.00014247,2]
[400141420,1767149443261,-1000.75482131,0.00014247,2]
[400141421,1767149443272,-1000.0,0.00014247,2]
[400141422,1767149443281,-1000.0,0.00014247,2]
[400141423,1767149443290,-1000.0,0.00014247,2]
[400141424,1767149443299,-1000.0,0.00014247,2]
[400141425,1767149443310,-1000.0,0.00014247,2]
[400141426,1767149443319,-1000.0,0.00014247,2]
[400141427,1767149443328,-1000.0,0.00014247,2]
[400141428,1767149443339,-1000.0,0.00014247,2]
[400141429,1767149443348,-500.48099046,0.00014247,2]
[400141430,1767149443356,-1000.0,0.00014247,2]
[400141431,1767149443365,-1000.0,0.00014247,2]
[400141432,1767149443374,-1000.0,0.00014247,2]
[400141433,1767149443383,-1000.0,0.00014247,2]
[400141434,1767149443391,-1000.0,0.00014247,2]
[400141435,1767149443400,-1000.0,0.00014247,2]
[400141436,1767149443409,-1000.0,0.00014247,2]
[400141437,1767149443418,-1000.0,0.00014247,2]
[400141438,1767149443427,-1000.0,0.00014247,2]
[400141439,1767149443436,-439.97362328,0.00014247,2]
[400141440,1767149443445,-1000.0,0.00014247,2]
[400141441,1767149443454,-1000.0,0.00014247,2]
[400141442,1767149443463,-1141.36512345,0.00014247,2]
[400141443,1767149443473,-1000.0,0.00014247,2]
[400141444,1767149443481,-1000.0,0.00014247,2]
[400141445,1767149443491,-842.07137515,0.00014247,2]
[400141446,1767149443500,-1000.0,0.00014247,2]
[400141447,1767149443508,-1000.0,0.00014247,2]
[400141448,1767149443518,-1000.0,0.00014247,2]
[400141449,1767149443526,-1000.0,0.00014247,2]
[400141450,1767149443536,-1000.0,0.00014247,2]
[400141451,1767149443545,-1000.0,0.00014247,2]
[400141452,1767149443554,-1000.0,0.00014247,2]
[400141453,1767149443562,-1000.0,0.00014247,2]
[400141454,1767149443572,-1000.0,0.00014247,2]
[400141455,1767149443581,-1000.0,0.00014247,2]
[400141456,1767149443590,-1000.0,0.00014247,2]
[400141457,1767149443599,-1000.0,0.00014247,2]
[400141458,1767149443608,-850.60008768,0.00014368,2]
[400141459,1767149443618,-1500.0,0.00014368,2]
[400141460,1767149443628,-1500.0,0.00014368,2]
[400141461,1767149443638,-305.16629448,0.00014368,2]
[400141462,1767149443648,-1149.22262001,0.00014368,2]
[400141463,1767149443657,-1500.0,0.00014368,2]
[400141464,1767149443666,-1500.0,0.00014368,2]
[400141466,1767149443778,-1500.0,0.00014368,2]
[400141467,1767149443788,-1500.0,0.00014368,2]
[400141468,1767149443799,-492.23358821,0.00014368,2]
[400141469,1767149443809,-1500.0,0.00014368,2]
[400141470,1767149443818,-1183.82350415,0.00014368,2]
[400141471,1767149443828,-1500.0,0.00014368,2]
[400141472,1767149443839,-609.08385745,0.00014368,2]
[400141474,1767149443848,-1500.0,0.00014368,2]
[400141475,1767149443857,-1500.0,0.00014368,2]
[400141477,1767149443866,-1500.0,0.00014368,2]
[400141479,1767149443876,-1500.0,0.00014368,2]
[400141481,1767149443885,-1500.0,0.00014368,2]
[400141482,1767149443894,-544.63270575,0.00014368,2]
[400141484,1767149443903,-501.81918671,0.00014368,2]
[400141486,1767149443912,-1464.3277621,0.00014368,2]
[400141488,1767149443921,-1500.0,0.00014368,2]
[400141489,1767149443930,-1500.0,0.00014368,2]
[400141491,1767149443940,-1500.0,0.00014368,2]
[400141493,1767149443950,-1500.0,0.00014368,2]
[400141494,1767149443959,-1500.0,0.00014368,2]
[400141495,1767149443969,-1500.0,0.00014368,2]
[400141496,1767149443979,-849.3977641,0.00014368,2]
[400141497,1767149443988,-1500.0,0.00014368,2]
[400141498,1767149443997,-1250.79014339,0.00014368,2]
[400141499,1767149444007,-1500.0,0.00014368,2]
[400141500,1767149444016,-690.31177109,0.00014368,2]
[400141501,1767149444026,-1500.0,0.00014368,2]
[400141502,1767149444036,-1500.0,0.00014368,2]
[400141503,1767149444045,-1500.0,0.00014368,2]
[400141504,1767149444054,-602.47879957,0.00014368,2]
[400141505,1767149444064,-1500.0,0.00014368,2]
[400141506,1767149444073,-186.16786472,0.00014368,2]
[400141507,1767149444083,-1500.0,0.00014368,2]
[400141508,1767149444092,-1500.0,0.00014368,2]
[400141509,1767149444101,-151.0,0.000144,2]
[400141510,1767149444111,-500.0,0.00014419,2]
[400141511,1767149444120,-587.0,0.0001461,2]
[400141512,1767149444130,-2351.0,0.00014673,2]
[400141513,1767149444139,-296.19409471,0.00014693,2]
[400141514,1767149444149,-151.0,0.000147,2]
[400141515,1767149444158,-2241.0,0.00014727,2]
[400141516,1767149444168,-900.0,0.00014768,2]
[400141517,1767149444177,-656.47212183,0.00014795,2]
[400141518,1767149444187,-1500.0,0.00014795,2]
[400141519,1767149444196,-1500.0,0.00014795,2]
[400141520,1767149444205,-463.63501052,0.00014795,2]
[400141521,1767149444214,-1135.05317618,0.00014795,2]
[400141522,1767149444224,-1545.39972522,0.00014795,2]
[400141523,1767149444233,-1500.0,0.00014795,2]
[400141524,1767149444242,-1502.35610833,0.00014795,2]
[400141525,1767149444251,-1500.0,0.00014795,2]
[400141526,1767149444261,-1500.0,0.00014795,2]
[400141527,1767149444271,-1078.13053233,0.00014795,2]
[400141528,1767149444282,-1500.0,0.00014795,2]
[400141529,1767149444291,-1068.53710429,0.00014795,2]
[400141530,1767149444300,-1425.73894344,0.00014795,2]
[400141531,1767149444310,-524.36073826,0.00014795,2]
[400141532,1767149444319,-690.10820632,0.00014795,2]
[400141533,1767149444328,-1500.0,0.00014795,2]
[400141534,1767149444337,-1500.0,0.00014795,2]
[400141535,1767149444347,-1500.0,0.00014795,2]
[400141536,1767149444356,-1500.0,0.00014795,2]
[400141537,1767149444365,-1500.0,0.00014795,2]
[400141538,1767149444375,-1500.0,0.00014795,2]
[400141539,1767149444385,-501.61073472,0.00014795,2]
[400141540,1767149444394,-1500.0,0.00014795,2]
[400141541,1767149444403,-1500.0,0.00014795,2]
[400141542,1767149444413,-1500.0,0.00014795,2]
[400141543,1767149444424,-1500.0,0.00014795,2]
[400141544,1767149444434,-370.59484017,0.00014795,2]
[400141545,1767149444444,-1001.27910227,0.00014795,2]
[400141546,1767149444454,-1500.0,0.00014795,2]
[400141547,1767149444463,-1504.00712805,0.00014795,2]
[400141548,1767149444472,-181.08073641,0.00014795,2]
[400141549,1767149444483,-614.96936602,0.00014795,2]
[400141550,1767149444494,-1501.43385257,0.00014795,2]
[400141551,1767149444503,-1500.0,0.00014795,2]
[400141552,1767149444514,-1500.0,0.00014795,2]
[400141553,1767149444523,-1500.0,0.00014795,2]
[400141554,1767149444532,-1633.65989049,0.00014795,2]
[400141555,1767149444542,-1500.0,0.00014795,2]
[400141556,1767149444551,-1500.0,0.00014795,2]
[400141557,1767149444561,-1500.0,0.00014795,2]
[400141558,1767149444570,-1500.0,0.00014795,2]
[400141559,1767149444580,-1136.51090941,0.00014795,2]
[400141560,1767149444589,-1000.66687773,0.00014795,2]
[400141561,1767149444598,-1500.0,0.00014795,2]
[400141562,1767149444608,-1500.0,0.00014795,2]
[400141563,1767149444617,-1500.0,0.00014795,2]
[400141564,1767149444627,-1500.0,0.00014795,2]
[400141565,1767149444637,-1500.0,0.00014795,2]
[400141566,1767149444647,-1500.0,0.00014795,2]
[400141567,1767149444656,-1500.0,0.00014795,2]
[400141568,1767149444666,-1516.82099752,0.00014795,2]
[400141569,1767149444676,-1500.0,0.00014795,2]
[400141570,1767149444686,-1104.02175741,0.00014795,2]
[400141571,1767149444695,-1500.0,0.00014795,2]
[400141572,1767149444705,-1500.0,0.00014795,2]
[400141573,1767149444715,-1500.0,0.00014795,2]
[400141574,1767149444724,-1500.0,0.00014795,2]
[400141575,1767149444734,-1897.36213629,0.00014887,2]
[400141576,1767149444744,-153.38490748,0.00014916,2]
[400141577,1767149444753,-531.8224898,0.00014916,2]
[400141578,1767149444763,-2000.0,0.00014916,2]
[400141579,1767149444773,-2000.0,0.00014916,2]
[400141580,1767149444783,-347.05017991,0.00014916,2]
[400141581,1767149444792,-2000.0,0.00014916,2]
[400141582,1767149444802,-2000.0,0.00014916,2]
[400141583,1767149444811,-1306.02349709,0.00014916,2]
[400141584,1767149444820,-2000.0,0.00014916,2]
[400141585,1767149444830,-2000.0,0.00014916,2]
[400141586,1767149444839,-2000.0,0.00014916,2]
[400141587,1767149444848,-160.40400037,0.00014916,2]
[400141588,1767149444858,-2000.0,0.00014916,2]
[400141589,1767149444868,-2000.0,0.00014916,2]
[400141590,1767149444877,-2000.0,0.00014916,2]
[400141591,1767149444886,-324.83546284,0.00014916,2]
[400141592,1767149444895,-1931.23584985,0.00014916,2]
[400141593,1767149444904,-2000.0,0.00014916,2]
[400141594,1767149444914,-2000.0,0.00014916,2]
[400141595,1767149444924,-1579.52271368,0.00014916,2]
[400141596,1767149444934,-2000.0,0.00014916,2]
[400141597,1767149444943,-2000.0,0.00014916,2]
[400141598,1767149444952,-924.40432946,0.00014916,2]
[400141599,1767149444962,-2000.0,0.00014916,2]
[400141600,1767149444972,-2000.0,0.00014916,2]
[400141601,1767149444982,-2000.0,0.00014916,2]
[400141602,1767149444991,-2000.0,0.00014916,2]
[400141603,1767149445000,-151.0,0.00015,2]
[400141604,1767149445010,-100000.0,0.00015028,2]
[400141605,1767149445019,-185.64986707,0.00015058,2]
[400141606,1767149445028,-803.5950816,0.00015068,2]
[400141607,1767149445038,-864.0,0.00015092,2]
[400141608,1767149445047,-3608.72,0.00015106,2]
[400141609,1767149445057,-1200.0,0.00015316,2]
[400141610,1767149445066,-151.0,0.00015342,2]
[400141611,1767149445077,-158.312179,0.00015342,2]
[400141612,1767149445086,-402.01463508,0.00015342,2]
[400141613,1767149445096,-915.94669576,0.00015342,2]
[400141614,1767149445105,-1004.96402588,0.00015342,2]
[400141615,1767149445115,-2000.0,0.00015342,2]
[400141616,1767149445124,-507.91355612,0.00015342,2]
[400141617,1767149445133,-1165.86238698,0.00015342,2]
[400141618,1767149445142,-1999.3887162,0.00015342,2]
[400141619,1767149445152,-516.87119182,0.00015342,2]
[400141620,1767149445161,-288.21762562,0.00015342,2]
[400141621,1767149445171,-1531.44929217,0.00015342,2]
[400141622,1767149445180,-2000.0,0.00015342,2]
[400141623,1767149445197,-503.07338889,0.00015342,2]
[400141624,1767149445216,-1384.30858632,0.00015342,2]
[400141625,1767149445235,-1966.55656616,0.00015342,2]
[400141626,1767149445251,-1005.23629678,0.00015342,2]
[400141627,1767149445271,-1648.95093186,0.00015342,2]
[400141628,1767149445292,-653.38246347,0.00015342,2]
[400141629,1767149445301,-1072.64960671,0.00015342,2]
[400141630,1767149445310,-502.54472719,0.00015342,2]
[400141631,1767149445320,-2001.67734075,0.00015342,2]
[400141632,1767149445331,-602.77058771,0.00015342,2]
[400141633,1767149445346,-2000.0,0.00015342,2]
[400141634,1767149445367,-2129.31875673,0.00015342,2]
[400141635,1767149445379,-791.10184317,0.00015342,2]
[400141636,1767149445389,-705.75062246,0.00015342,2]
[400141637,1767149445399,-1297.38655962,0.00015342,2]
[400141638,1767149445410,-1502.28673473,0.00015342,2]
[400141639,1767149445421,-1693.91846211,0.00015342,2]
[400141640,1767149445435,-502.02163491,0.00015342,2]
[400141641,1767149445445,-2000.0,0.00015342,2]
[400141642,1767149445457,-2000.0,0.00015342,2]
[400141643,1767149445468,-501.68831439,0.00015342,2]
[400141644,1767149445477,-502.12822371,0.00015342,2]
[400141645,1767149445489,-1504.50560439,0.00015342,2]
[400141646,1767149445499,-2001.75988266,0.00015342,2]
[400141647,1767149445511,-2000.0,0.00015342,2]
[400141648,1767149445521,-499.794244,0.00015464,2]
[400141649,1767149445532,-499.794244,0.00015464,2]
[400141650,1767149445541,-499.794244,0.00015464,2]
[400141651,1767149445551,-499.794244,0.00015464,2]
[400141652,1767149445561,-219.435139,0.00015464,2]
[400141653,1767149445572,-219.435139,0.00015464,2]
[400141654,1767149445581,-219.435139,0.00015464,2]
[400141655,1767149445591,-219.435139,0.00015464,2]
[400141656,1767149445601,-318.87701711,0.00015464,2]
[400141657,1767149445611,-768.13998817,0.00015464,2]
[400141658,1767149445623,-451.0928214,0.00015464,2]
[400141659,1767149445633,-2500.0,0.00015464,2]
[400141660,1767149445643,-2500.0,0.00015464,2]
[400141661,1767149445653,-2500.0,0.00015464,2]
[400141662,1767149445665,-2500.0,0.00015464,2]
[400141663,1767149445675,-2500.0,0.00015464,2]
[400141664,1767149445684,-2500.0,0.00015464,2]
[400141665,1767149445694,-2500.0,0.00015464,2]
[400141666,1767149445703,-2500.0,0.00015464,2]
[400141667,1767149445713,-2500.0,0.00015464,2]
[400141668,1767149445722,-2500.0,0.00015464,2]
[400141669,1767149445732,-501.82211209,0.00015464,2]
[400141670,1767149445741,-2500.0,0.00015464,2]
[400141671,1767149445751,-2500.0,0.00015464,2]
[400141672,1767149445761,-2500.0,0.00015464,2]
[400141673,1767149445771,-517.15080689,0.00015464,2]
[400141674,1767149445780,-330.05685762,0.00015506,2]
[400141675,1767149445790,-594.10234372,0.00015506,2]
[400141676,1767149445799,-1056.18194439,0.00015506,2]
[400141677,1767149445808,-1650.28428811,0.00015506,2]
[400141678,1767149445818,-2376.40937487,0.00015506,2]
[400141679,1767149445827,-3234.55720469,0.00015506,2]
[400141680,1767149445837,-4224.72777755,0.00015506,2]
[400141681,1767149445846,-5346.92109346,0.00015506,2]
[400141682,1767149445856,-6601.13715242,0.00015506,2]
[400141683,1767149445865,-432.34398779,0.00015506,2]
[400141684,1767149445874,-778.21917802,0.00015506,2]
[400141685,1767149445883,-1383.50076092,0.00015506,2]
[400141686,1767149445892,-2161.71993893,0.00015506,2]
[400141687,1767149445902,-3112.87671206,0.00015506,2]
[400141688,1767149445911,-4236.97108031,0.00015506,2]
[400141689,1767149445920,-5534.00304367,0.00015506,2]
[400141690,1767149445929,-13254.68886095,0.00015738,2]
[400141691,1767149445938,-1202.05494296,0.00015864,2]
[400141692,1767149445948,-903.04207638,0.0001589,2]
[400141693,1767149445957,-2104.21263858,0.0001589,2]
[400141694,1767149445967,-2500.0,0.0001589,2]
[400141695,1767149445976,-1519.2068046,0.0001589,2]
[400141696,1767149445985,-2500.0,0.0001589,2]
[400141697,1767149445994,-502.92641723,0.0001589,2]
[400141698,1767149446003,-189.97563108,0.00015981,2]
[400141699,1767149446013,-3000.0,0.00016012,2]
[400141700,1767149446022,-356.70683283,0.00016012,2]
[400141701,1767149446032,-3000.0,0.00016012,2]
[400141702,1767149446041,-3000.0,0.00016012,2]
[400141703,1767149446050,-3000.0,0.00016012,2]
[400141704,1767149446059,-2508.62893178,0.00016012,2]
[400141705,1767149446069,-3000.0,0.00016012,2]
[400141706,1767149446079,-3000.0,0.00016012,2]
[400141707,1767149446088,-3000.0,0.00016012,2]
[400141716,1767149446187,-3000.0,0.00016012,2]
[400141719,1767149446208,-3000.0,0.00016012,2]
[400141720,1767149446218,-194.42033107,0.00016012,2]
[400141722,1767149446227,-3000.0,0.00016012,2]
[400141724,1767149446237,-250.0,0.00016025,2]
[400141726,1767149446246,-823.0,0.00016037,2]
[400141728,1767149446255,-354.95152293,0.00016053,2]
[400141730,1767149446267,-3292.0,0.00016141,2]
[400141732,1767149446276,-431.50554577,0.00016162,2]
[400141733,1767149446285,-776.70998238,0.00016162,2]
[400141735,1767149446295,-1380.81774646,0.00016162,2]